Cogmind - Beta 17 @@@ ROGUE MODE // 2026.06.29 @ 17:09:45 Player: goobie Result: Destroyed by S-10 Pest with Light Assault Rifle Performance ------------- Evolutions (0) 0 Regions Visited (2) 400 Robots Destroyed (14) 70 Value Destroyed (418) 418 Prototype IDs (0) 0 Alien Tech Used (0) 0 Bonus (0) 0 TOTAL SCORE: 888 Bonus ------- None Cogmind --------- Core Integrity 0/250 Matter 300/300 Energy 49/250 System Corruption 0% Temperature Hot (210) Movement Walking (260) Ox2 Location -10/Subcaves Parts ------- > --- POWER (1) -------- Ion Engine > --- PROPULSION (2) --- Improved Aluminum Leg > --- UTILITY (2) ------ Medium Storage Unit Subdweller Optics > --- WEAPON (2) ------- Beam Cannon Subdweller Beam Cannon > --- INVENTORY (10) --- Subdweller Power Source Disposable Heat Sink Signal Interpreter Heavy EM Pulse Gun Subdweller Laser Beam Cannon Light Assault Rifle Peak State ------------ > --- POWER ------------ Ion Engine > --- PROPULSION ------- Improved Aluminum Leg Improved Aluminum Leg > --- UTILITY ---------- Heat Sink Medium Storage Unit > --- WEAPON ----------- Particle Gun Assault Rifle > --- INVENTORY -------- Ion Engine Improved Aluminum Leg Improved Aluminum Leg Signal Interpreter Beam Cannon Beam Cannon Assault Rifle Light Assault Rifle Light Cannon [Rating: 11] Favorites ----------- Power Ion Engine Engine Ion Engine Propulsion Improved Aluminum Leg Leg Improved Aluminum Leg Wheel Wheel Utility Medium Storage Unit Device Heat Sink Storage Medium Storage Unit Weapon Assault Rifle Energy Gun Particle Gun Energy Cannon Beam Cannon Ballistic Gun Assault Rifle Ballistic Cannon Light Cannon Build | -11 -10 -10 ------- Run | Yrd Mat Sub Slots Evolved . | . . . Power . | . . . Propulsion . | . . . Utility . | . . . Weapon . | . . . Parts Attached 23 | 7 9 7 Power 5 | 2 2 1 Engine 5 | 2 2 1 Core . | . . . Reactor . | . . . Propulsion 6 | 2 2 2 Treads . | . . . Leg 4 | . 2 2 Wheel 2 | 2 . . Hover . | . . . Flight . | . . . Utility 4 | 1 2 1 Device 2 | . 1 1 Storage 2 | 1 1 . Processor . | . . . Hackware . | . . . Protection . | . . . Artifact . | . . . Weapon 8 | 2 3 3 Energy Gun 1 | . 1 . Energy Cannon 3 | . 1 2 Ballistic Gun 3 | 2 1 . Ballistic Cannon 1 | . . 1 Launcher . | . . . Special Weapon . | . . . Impact Weapon . | . . . Slashing Weapon . | . . . Piercing Weapon . | . . . Special Melee Weapon . | . . . Unidentified Prototypes . | . . . Parts Lost 9 | . . 9 Power 2 | . . 2 Propulsion 3 | . . 3 Utility 1 | . . 1 Weapon 3 | . . 3 Highest Loss Streak 6 | . . 6 To Critical Strikes . | . . . Average Backups 7 | 1 7 8 Power 1 | . 1 1 Propulsion 1 | . 1 . Utility . | . . 1 Weapon 3 | 1 3 4 Tool/Special . | . . . Unused Backups 7 | . 2 5 Power 1 | . . 1 Propulsion 2 | . 2 . Utility 2 | . . 2 Weapon 2 | . . 2 Tool/Special . | . . . Average Slot Usage (%) 92 | . 91 93 Engine 13 | . 14 13 Leg 24 | . 24 25 Wheel 2 | . 3 . Device 8 | . 6 11 Storage 14 | . 14 14 Energy Gun 5 | . 6 3 Energy Cannon 6 | . 2 10 Ballistic Gun 12 | . 18 3 Ballistic Cannon 3 | . . 8 Peak Build Rating 11 | 6 11 11 Average Rating 9 | 3 9 10 On Entrance 5 | . 6 11 Avg Prop Armor Cover (%) . | . . . Naked Turns . | . . . Heaviest Build 23 | 11 21 23 Greatest Support 26 | 26 26 26 Greatest Overweight (x) 1 | . . 1 Average Overweight (x) . | . . . Largest Inventory Capacity 10 | 8 10 10 Average Capacity 9 | 7 9 10 Most Carried 10 | 4 10 10 Average Carried 7 | 1 7 8 Final Capacity 10 | 8 10 10 Final Carried 10 | 2 10 7 Class Distribution -------------------- 100% | Mutant Dominant Class ---------------- Mutant | -10/Materials Mutant | -10/Subcaves Resources | -11 -10 -10 ----------- Run | Yrd Mat Sub Matter Collected 586 | 230 215 141 Remotely . | . . . Salvage Created 479 | . 260 219 Parts 28 | . 12 16 Haulers Intercepted . | . . . Recyclers Shooed . | . . . Parts Field Recycled . | . . . Retrieved Matter . | . . . Parts Self-Destructed 5 | . . 5 Prevented . | . . . Parts Restored . | . . . Kills | -11 -10 -10 ------- Run | Yrd Mat Sub Combat Hostiles Destroyed 11 | . 4 7 Guns 1 | . 1 . Cannons 10 | . 3 7 Classes Destroyed 5 | . 2 3 Recycler 1 | . 1 . Turret 2 | . . 2 Swarmer 3 | . . 3 Grunt 4 | . 4 . Subdweller 4 | . . 4 Best Kill Streak 5 | . 3 5 Combat Bots Only 3 | . 2 3 Max Kills in Single Turn 1 | . 1 1 Gunslinging . | . . . Exploded . | . . . Melee . | . . . Uniques/NPCs Destroyed . | . . . Combat | -11 -10 -10 -------- Run | Yrd Mat Sub Hostile Shots Fired 184 | . 75 109 Missed 70 | . 30 40 Hits 114 | . 45 69 Projectile 114 | . 45 69 Damage Taken 1462 | . 499 963 Core 251 | . 51 200 Absorbed by Shields . | . . . Core Remaining (%) 100 | 100 . . Volleys Fired 53 | . 21 32 Largest 2 | . 2 2 Hottest 140 | . 85 140 Shots Fired 106 | . 42 64 Gun 33 | . 25 8 Cannon 73 | . 17 56 Launcher . | . . . Special . | . . . Kinetic 48 | . 23 25 Thermal 58 | . 19 39 Explosive . | . . . Electromagnetic . | . . . Robot Hit Streak 15 | . 6 15 Robot Miss Streak 4 | . 4 2 Penetration Max . | . . . Secondary Targets . | . . . Shots Hit Robots 67 | . 22 45 Core Hits 25 | . 10 15 Critical Kills . | . . . Critical Parts Destroyed . | . . . Critical Strikes . | . . . Melee Attacks . | . . . Impact . | . . . Slashing . | . . . Piercing . | . . . Sneak Attacks . | . . . Combat Hostiles . | . . . Follow-up Attacks . | . . . Damage Inflicted 1189 | . 363 826 Guns 238 | . 162 76 Cannons 941 | . 191 750 Explosions . | . . . Melee . | . . . Ramming 10 | . 10 . Kinetic 418 | . 129 289 Thermal 761 | . 224 537 Explosive . | . . . Electromagnetic . | . . . Impact . | . . . Slashing . | . . . Piercing . | . . . Highest Corruption . | . . . Average Corruption . | . . . Corruption Purged . | . . . Corruption Blocked . | . . . Overload Shots . | . . . Overflow Damage 10 | . . 10 Projectiles 10 | . . 10 Explosions . | . . . Melee . | . . . Knockbacks 3 | . . 3 Impact . | . . . Kinetic 3 | . . 3 Secondary . | . . . Self-Inflicted Damage . | . . . Shots . | . . . Rammed . | . . . Targets Rammed 3 | . 3 . Kicked 3 | . 3 . Crushed . | . . . Highest Temperature 232 | . 196 232 Average Temperature 98 | . 85 139 Received Heat Transfer 576 | . 222 354 Siege Activations . | . . . Martial Activations . | . . . Shielding Activations . | . . . Robots Disrupted . | . . . Combat Hostiles . | . . . Robots Corrupted . | . . . Combat Hostiles . | . . . Parts Fried . | . . . Impact Corruptions . | . . . Robots Melted . | . . . Combat Hostiles . | . . . Parts Melted 2 | . 1 1 Heat Transferred 1517 | . 481 1036 Parts Sabotaged . | . . . Parts Stolen . | . . . Parts Stripped . | . . . Power Chain Reactions . | . . . Alert | -11 -10 -10 ------- Run | Yrd Mat Sub Maximum Alert Level . | . . . Low Security (%) 100 | 100 100 . Level 1 . | . . . Level 2 . | . . . Level 3 . | . . . Level 4 . | . . . Level 5 . | . . . High Security . | . . . Max Security . | . . . Peak Influence 80 | . 80 . Initial . | . . . Average 21 | . 24 . Influence Increases 325 | . 150 175 Destroy 0b10 Robot/C 180 | . 80 100 Destroy 0b10 Robot/NC 5 | . 5 . Destroy Leader 20 | . 20 . Successful Hack 15 | . 15 . Partial Spotted 15 | . 15 . Lose Combat Pursuer 90 | . 15 75 Influence Decreases 200 | . 150 50 Time Decay 170 | . 150 20 Lost Part 30 | . . 30 Squads Dispatched 1 | . 1 . Investigation 1 | . 1 . Extermination . | . . . Reinforcement . | . . . Assault . | . . . Garrison . | . . . Intercept . | . . . Searches Triggered . | . . . Construction Impeded . | . . . Haulers Reinforced . | . . . Active Scanning Responses . | . . . Cargo Convoy Interrupts . | . . . Stealth | -11 -10 -10 --------- Run | Yrd Mat Sub Distress Signals 1 | . 1 . Communications Jammed . | . . . Distress Signals . | . . . Times Spotted 31 | . 16 15 Peak Tracking Total 7 | . 7 6 Tactical Retreats 3 | . 1 2 Traps | -11 -10 -10 ------- Run | Yrd Mat Sub Traps Triggered 2 | . 2 . Indirectly . | . . . Trap Hack Attempts . | . . . Triggered . | . . . Disarmed . | . . . Reprogrammed . | . . . Reused . | . . . Traps Extracted . | . . . Installed . | . . . Triggered . | . . . Machines | -11 -10 -10 ---------- Run | Yrd Mat Sub Machines Disabled . | . . . Max in Single Turn . | . . . Machines Repaired . | . . . Machines Dismantled . | . . . Machines Sabotaged . | . . . Overloaded Fab Kills . | . . . Hacking | -11 -10 -10 --------- Run | Yrd Mat Sub Machines Accessed 5 | . 4 1 Terminals 3 | . 3 . Fabricators . | . . . Repair Stations . | . . . Recycling Units 1 | . 1 . Scanalyzers . | . . . Garrison Access . | . . . Total Hacks 18 | . 14 4 Successful 14 | . 10 4 Failed 4 | . 4 . Catastrophic . | . . . Database Lockouts . | . . . Manual . | . . . Terminals 11 | . 11 . Fabricators . | . . . Repair Stations . | . . . Recycling Units 3 | . 3 . Scanalyzers . | . . . Garrison Access . | . . . Terminal Hacks 11 | . 7 4 Record 4 | . . 4 Emergency Access Points 1 | . 1 . Alert Level 2 | . 2 . Locate Traps 2 | . 2 . Hauler Manifests 1 | . 1 . Zone Layout 1 | . 1 . Fabricator Hacks . | . . . Repair Station Hacks . | . . . Recycling Unit Hacks 3 | . 3 . Recycle Component 1 | . 1 . Process 1 | . 1 . Retrieve Matter 1 | . 1 . Scanalyzer . | . . . Garrison Access Hacks . | . . . Unauthorized Hacks . | . . . Terminals . | . . . Fabricators . | . . . Repair Stations . | . . . Recycling Units . | . . . Scanalyzers . | . . . Garrison Access . | . . . Data Cores Recovered . | . . . Used . | . . . Hacking Detections 4 | . 4 . Full Trace Events 1 | . 1 . Feedback Events . | . . . Feedback Blocked . | . . . Robot Schematics Acquired . | . . . Robots Built . | . . . Authchips . | . . . Time . | . . . Total Robot Build Rating . | . . . Part Schematics Acquired . | . . . Parts Built . | . . . Authchips . | . . . Time . | . . . Total Part Build Rating . | . . . Part Studies Acquired . | . . . Parts Repaired . | . . . Time . | . . . Parts Recycled 1 | . 1 . Recycled Matter . | . . . Retrieved Matter . | . . . Retrieved Components . | . . . Parts Scanalyzed . | . . . Part Schematics Acquired . | . . . Parts Damaged . | . . . Bothacking | -11 -10 -10 ------------ Run | Yrd Mat Sub Used RIF Installer . | . . . Robots Hacked . | . . . Non-combat . | . . . Combat . | . . . Robot Hacks Applied . | . . . Relay Couplers Released . | . . . Fabnet Peak Effective % . | . . . Robots Rewired . | . . . Allies Hacked . | . . . Hacks Repelled . | . . . Allies | -11 -10 -10 -------- Run | Yrd Mat Sub Total Allies . | . . . Largest Group . | . . . Highest-Rated Group . | . . . Highest-Rated Ally . | . . . Total Orders . | . . . Ally Attacks . | . . . Total Damage . | . . . Kills . | . . . Allies Corrupted . | . . . Allies Melted . | . . . Intel | -11 -10 -10 ------- Run | Yrd Mat Sub Active Infowar (turns) 191 | . . 191 Optics 191 | . . 191 Robot Analysis Total . | . . . Derelict Logs Recovered . | . . . Drone Launches . | . . . Drone Recoveries . | . . . Exploration | -11 -10 -10 ------------- Run | Yrd Mat Sub Turns Passed 893 | 56 491 346 Spaces Moved 573 | 53 332 188 Core 17 | 17 . . Treads . | . . . Legs 469 | . 281 188 Wheels 87 | 36 51 . Hover . | . . . Flight . | . . . Fastest Speed 50 | 50 90 120 Average Speed 113 | 77 115 121 Slowest Speed 190 | 90 120 190 Overloaded Moves . | . . . Propulsion Burnouts . | . . . Robots Hopped . | . . . Potential Cave-ins . | . . . Cave-ins Triggered . | . . . Exploration Rate (%) 23 | 3 56 11 Regions Visited 2 Branch Regions 1 Pre-discovered Areas . | . . . Known Exits Taken . | . . . Unknown Exits Taken 2 | 1 1 . Scrap Searched . | . . . Spaces Dug . | . . . Terrain Destroyed 1 | . . 1 Melee . | . . . Projectile 1 | . . 1 AOE . | . . . Terrain Rammed . | . . . Walls Destroyed . | . . . Machines Disabled . | . . . Actions | -11 -10 -10 --------- Run | Yrd Mat Sub Total 707 | 67 397 243 Wait 14 | . 6 8 Move 571 | 52 331 188 Hop . | . . . Pick Up 30 | 8 16 6 Fast Attach 1 | . 1 . Attach 16 | 6 2 8 Detach 1 | . 1 . Swap 10 | 1 9 . Drop 8 | . 7 1 Fire 53 | . 21 32 Melee . | . . . Ram . | . . . Kick 3 | . 3 . Crush . | . . . Escape Stasis . | . . . Rewire . | . . . Trap . | . . . Miscellaneous . | . . . Route ------- -11/Scrapyard -10/Materials (discovered 2 exits: [*Min] / *Sub) -10/Subcaves (discovered 1 exit: *Rec) History --------- Turn | Location | Event 4 | -11/Scrapyard | Discovered new exit (range 16) 57 | -11/Scrapyard | Entered Materials 345 | -10/Materials | Build established: Mutant 351 | -10/Materials | Discovered new exit (range 9) 367 | -10/Materials | Discovered new exit (range 16) 548 | -10/Materials | Entered Subcaves 549 | -10/Subcaves | Approached by a straggling Scientist 678 | -10/Subcaves | Core integrity fell below 50% 706 | -10/Subcaves | Lost 6 parts (1p2n1u2w) 824 | -10/Subcaves | Visited Clippyterm 827 | -10/Subcaves | Identified exit to Recycling 827 | -10/Subcaves | Learned Factory stockpile data 862 | -10/Subcaves | Core integrity fell below 20% 894 | -10/Subcaves | Destroyed by S-10 Pest with Light Assault Rifle Last Messages --------------- here" 00854_ Imp. Aluminum Leg destroyed. 00855_ S-10 Pest destroyed. 00861_ Flight Unit melted. 00861_ S-10 Pest destroyed. 00862_ Subatomizers dissect the Sub. Machine Gun. 00864_ Acquired 15 matter. 00869_ Lgt. Cannon destroyed. 00870_ Lgt. Ion Engine fries itself beyond repair. 00873_ Acquired 10 matter. 00875_ Lgt. Ion Engine fries itself beyond repair. 00875_ Flight Unit fries itself beyond repair. 00876_ Autobeam Turret destroyed. 00887_ Ion Engine destroyed. 00888_ Autobeam Turret destroyed. 00892_ Acquired 10 matter. 00892_ Destroyed Flight Unit. Map ----- +----------------------------------------------------+ | ?????????????????????????????????????????????????? | | ?????????????????????????????????????????????????? | | ?????????????????????????????????????????????????? | | ?????????????????????????????????????????????????? | | ?????????????????????????????????????????????????? | | ?????????????????????????????????????????????????? | | ?????????????????????????????????????????????????? | | ?????????????????????????????????????????????????? | | ?????????????????????????????????????????????????? | | ?????????????????????????????????????????????????? | | ?????????????????????????????????????????????????? | | ????????????????????#?????????????#######????????? | | ????????????????????#"????????????#"""""#????????? | | ????????????????????# ##?????????#""X""#????????? | | ?????????????????????# #"?????????#" "#????????? | | ?????????????????????? " ????????### ###????????? | | ??????????????????????? ?????????## #####??????? | | ????????????????????????# ??????### #??????? | | ?????????????????????????# ##????# #??????? | | ??????????????????????????# ##??## #??????? | | ??????????????????????????## #### #??????? | | ???????????????????????????##%&[ ##??????? | | ??????????????????????????###%& #???????? | | ?????????????#" ?????????##s!#&%# #???????? | | ?????????????#"" #### ### # ##???????? | | ????????????#> %% % %@### ###???###### | | ?????????????#"" ## ###?# ####### | | ????????????????????????????# # # % &% | | ????????????????????????????###### ### %# | | ?????????????????????????????????# ### & # | | ?????????????????????????????????## ### & &# | | ??????????????????????????????#### ## &=# | | ?????????????????????????# ## # | | ??????????????????????????# | | ??????????????????????????# # # | | ??????????????????????????# ## ### ## ## | | ??????????????????????????#??######??# # ### | | ?????????????????????????????????????## ## ##?# | | ??????????????????????????????????#### #??# | | ??????????????????????????????????# #??# | | ??????????????????????????????????# ##??# | | ??????????????????????????????????# ### #??? | | ??????????????????????????????????##??## ##??? | | ???????????????????????????????????????#####???? | | ???????????????????????????????????????????????? | | ??????????????????????????????????????????????? | | ??????????????????????????????????????????????? | | ??????????????????????????????????????????????? | | ??????????????????????????????????????????????? | | ???????????????????????????????????????????????? | +----------------------------------------------------+ Best States ------------- Heat Dissipation 35 Energy Generation 10 Energy Capacity 250 Matter Stores 300 Matter Capacity 300 Sight Range 21 Terrain Scan Density 10 Evasion (%) 55 Item Schematics ----------------- None Robot Schematics ------------------ None Fabricated ------------ Nothing Repaired ---------- Nothing Studied --------- None Alien Tech Used ----------------- None Achievements -------------- None Challenges ------------ None Game ------ Seed StasisArmageddonReplicator Manual? 0 Play Time 00:13:49 Cumulative 30.1 hours Start 2026.06.29 @ 16:55:49 End 2026.06.29 @ 17:09:45 Sessions 1 Manual Loads 0 Difficulty Rogue Special Mode None Game No. 48 Rogue 20 Adventurer 28 Explorer 0 Win Type - Total 0 Types 0/0/0/0/0/0/0/0/0/0 Lore% 16 Gallery% 22 Achievement% 17 Wizard Run 0 Options --------- Layout 1 ASCII 0 Keyboard 0 Movement Mouse Keybinds 0 Fullscreen 1 Font 24/Smallcaps Map View 50x35 Zoom Use 0% Tactical HUD 1 Map Filters NONE Filters NONE Steam 1 RUN: 6472dcf6-5804-4333-b93e-78b139994a20